bitfinex-derivatives/quotes_SOLF0:USTF0_20250703
["timestamp","ask_amount","ask_price","bid_price","bid_amount"]
[1751554236304,6.5476,152.66,152.65,47.24]
[1751554236600,12.20431454,152.66,152.65,47.24]
[1751554238207,5.65671454,152.66,152.65,47.24]
[1751554238398,5.9030774,152.7,152.65,52.05003308]
[1751554238603,5.9030774,152.71,152.65,54.42513308]
[1751554239305,5.9030774,152.72,152.65,54.42513308]
[1751554239507,4.81003308,152.71,152.65,54.42513308]
[1751554239906,6.5468,152.68,152.66,6.5474]
[1751554240207,8.1603774,152.73,152.67,195.56]
[1751554240208,4.81003308,152.69,152.67,195.56]
[1751554240507,6.5467,152.68,152.67,195.56]
[1751554241210,6.4467,152.68,152.67,195.56]
[1751554241405,6.5464,152.69,152.67,195.56]
[1751554242411,6.5464,152.69,152.67,195.54]
[1751554243210,6.5467,152.68,152.67,195.54]
[1751554244709,6.5465,152.69,152.67,195.54]
[1751554245301,4.81003308,152.71,152.67,195.54]
[1751554245302,6.5467,152.68,152.67,195.54]
[1751554245701,4.81003308,152.71,152.67,202.0872]
[1751554245910,6.5465,152.69,152.67,202.0872]
[1751554246109,4.81003308,152.71,152.67,195.54]
[1751554246420,10.7945444,152.71,152.67,195.54]
[1751554246608,6.546,152.7,152.67,195.54]
[1751554246812,6.546,152.7,152.67,202.087]
[1751554247014,5.98451132,152.72,152.67,195.54]
[1751554247312,5.98451132,152.72,152.7,6.5456]
[1751554247514,5.98451132,152.72,152.7,195.48]
[1751554247720,4.81003308,152.74,152.7,195.48]
[1751554247913,4.81003308,152.74,152.7,202.0257]
[1751554248110,4.81003308,152.74,152.7,195.48]
[1751554248111,6.5454,152.71,152.7,195.48]
[1751554250318,5.63565428,152.71,152.7,195.48]
[1751554251219,210.12797495,152.75,152.7,202.0259]
[1751554251420,5.63396675,152.74,152.7,202.0259]
[1751554251621,5.63396675,152.73,152.7,202.0259]
[1751554251816,5.63396675,152.72,152.7,195.48]
[1751554252018,6.5453,152.72,152.7,195.48]
[1751554252826,6.5447,152.73,152.7,195.48]
[1751554253024,5.64595109,152.72,152.7,242.6]
[1751554253214,4.81003308,152.74,152.7,242.6]
[1751554253523,6.5454,152.71,152.7,242.6]
[1751554254923,6.5472,152.67,152.66,47.12]
[1751554255218,6.5472,152.67,152.66,242.5]
[1751554255419,6.5472,152.67,152.66,47.12]
[1751554255615,6.5472,152.67,152.66,242.48]
[1751554255819,6.5472,152.67,152.66,47.12]
[1751554256120,6.5472,152.67,152.66,242.48]
[1751554259523,6.5472,152.67,152.66,242.46]
[1751554260019,6.5472,152.67,152.66,242.44]
[1751554260319,6.5472,152.67,152.66,47.12]
[1751554260526,6.5491,152.63,152.62,47.12]
[1751554260921,4.81003308,152.64,152.59,195.34]
[1751554261124,6.5504,152.6,152.59,195.34]
[1751554262025,11.35993308,152.61,152.59,195.34]
[1751554262425,4.81003308,152.61,152.59,195.34]
[1751554263331,11.36003308,152.61,152.59,195.34]
[1751554263528,2.3676,152.66,152.59,195.34]
[1751554263829,6.5493,152.63,152.59,195.34]
[1751554264030,4.81003308,152.65,152.59,195.34]
[1751554264229,6.5487,152.64,152.61,6.5495]
[1751554264424,6.5487,152.64,152.62,195.3]
[1751554264824,6.5487,152.64,152.63,195.32]
[1751554265025,4.81003308,152.68,152.63,195.32]
[1751554265230,5.61580298,152.67,152.63,195.32]
[1751554265630,6.5477,152.66,152.63,201.8689]
[1751554266531,6.5473,152.67,152.64,6.5483]
[1751554268230,6.5476,152.66,152.64,6.5483]
[1751554268620,6.5474,152.67,152.65,6.548]
[1751554268825,6.5474,152.67,152.66,195.3]
[1751554270234,12.15304594,152.67,152.66,195.3]
[1751554271431,5.60564594,152.67,152.61,47.14]
[1751554271629,4.81003308,152.65,152.62,195.26]
[1751554271824,5.60564594,152.64,152.62,195.26]
[1751554272025,4.81003308,152.65,152.62,195.26]
[1751554272224,6.5492,152.63,152.61,47.14]
[1751554272423,6.5492,152.63,152.61,242.4]
[1751554272828,6.5493,152.62,152.61,47.14]
[1751554273636,12.16164359,152.62,152.61,47.14]
[1751554274628,12.16164359,152.62,152.58,195.24]
[1751554274629,5.61234359,152.62,152.58,195.24]
[1751554274832,4.81003308,152.6,152.57,47.14]
[1751554275029,4.81003308,152.6,152.57,242.36]
[1751554275233,4.81003308,152.6,152.53,2.2258]
[1751554275437,4.81003308,152.56,152.54,242.36]
[1751554276935,11.36213308,152.56,152.54,242.36]
[1751554277141,6.5521,152.56,152.54,242.36]
[1751554277636,4.81003308,152.56,152.55,195.22]
[1751554278136,4.81003308,152.56,152.54,47.14]
[1751554278642,4.81003308,152.56,152.54,195.2]
[1751554278847,4.81003308,152.56,152.46,4.6225]
[1751554279044,4.81003308,152.56,152.48,4.81003308]
[1751554279434,4.81003308,152.56,152.5,4.81003308]
[1751554279634,4.81003308,152.58,152.51,195.22]
[1751554279934,6.5521,152.56,152.53,6.553]
[1751554280134,6.5521,152.56,152.54,195.22]
[1751554280342,4.81003308,152.58,152.54,195.22]
[1751554280537,6.5517,152.57,152.54,201.7725]
[1751554280736,53.12645801,152.63,152.54,200.03003308]
[1751554281035,6.5512,152.58,152.54,200.03003308]
[1751554281235,4.81003308,152.61,152.53,2.2421]
[1751554281435,4.81003308,152.61,152.52,51.95003308]
[1751554281436,6.5523,152.55,152.54,195.2]
[1751554281646,4.81003308,152.57,152.54,195.2]
[1751554281947,6.5521,152.56,152.54,201.7525]
[1751554282150,6.5521,152.56,152.52,47.14]
[1751554282348,4.81003308,152.59,152.53,195.22]
[1751554282644,6.5512,152.58,152.55,6.552]
[1751554283343,6.5507,152.59,152.56,6.5516]
[1751554283542,4.81003308,152.61,152.57,195.22]
[1751554283747,10.63725801,152.65,152.57,242.26]
[1751554283748,6.5508,152.59,152.57,242.26]
[1751554284342,4.81003308,152.61,152.57,242.26]
[1751554286448,6.5509,152.59,152.57,242.26]
[1751554287149,4.81003308,152.61,152.57,242.26]
[1751554288450,6.551,152.58,152.57,242.26]
[1751554289256,6.551,152.58,152.55,6.552]
[1751554289852,6.5514,152.57,152.56,195.16]
[1751554290356,6.5512,152.58,152.56,195.16]
[1751554290556,4.81003308,152.57,152.56,195.16]
[1751554290857,4.81003308,152.57,152.55,47.04]
[1751554291155,4.81003308,152.57,152.54,195.16]
[1751554291451,4.81003308,152.55,152.54,195.16]
[1751554292156,6.5529,152.54,152.52,6.5533]
[1751554292357,6.5529,152.54,152.53,195.14]
[1751554292956,4.81003308,152.55,152.51,242.16]
[1751554293155,4.81003308,152.52,152.51,242.16]
[1751554293351,11.36363308,152.52,152.51,242.16]
[1751554294858,11.36363308,152.52,152.51,242.18]
[1751554296045,6.5548,152.5,152.45,570.77003308]
[1751554296252,4.81003308,152.5,152.47,47.06]
[1751554296648,6.5551,152.49,152.47,47.06]
[1751554296850,4.81003308,152.5,152.47,47.06]
[1751554297048,4.81003308,152.5,152.48,195.12]
[1751554297253,6.5549,152.49,152.48,195.12]
[1751554297555,4.81003308,152.5,152.48,195.12]
[1751554297750,4.81003308,152.5,152.47,47.06]
[1751554297952,4.81003308,152.48,152.47,242.18]
[1751554298157,4.81003308,152.5,152.47,242.18]
[1751554298357,6.5553,152.48,152.47,242.18]
[1751554298757,11.36533308,152.48,152.47,242.16]
[1751554298955,11.36533308,152.48,152.47,47.06]
[1751554299156,6.5561,152.47,152.42,2.1865]
[1751554299357,4.81003308,152.48,152.43,248.7172]
[1751554299962,6.5565,152.46,152.43,248.7172]
[1751554300765,6.5565,152.46,152.43,6.5572]
[1751554300965,6.5567,152.45,152.44,195.12]
[1751554301264,4.81003308,152.48,152.43,6.5572]
[1751554301464,4.81003308,152.48,152.44,195.12]
[1751554301465,6.5564,152.46,152.44,195.12]
[1751554301859,4.81003308,152.48,152.45,195.1]
[1751554302064,4.81003308,152.46,152.45,195.1]
[1751554302373,6.5562,152.46,152.45,195.1]
[1751554302562,11.36623308,152.46,152.45,195.1]
[1751554303261,6.557,152.44,152.43,47.06]
[1751554303458,4.81003308,152.46,152.43,242.18]
[1751554303861,6.6302,152.52,152.43,246.99003308]
[1751554304166,4.81003308,152.54,152.47,4.81003308]
[1751554304362,4.81003308,152.54,152.48,242.18]
[1751554304763,6.5533,152.53,152.5,6.5541]
[1751554304959,208.65425214,152.56,152.51,195.1]
[1751554305360,6.5532,152.53,152.51,195.1]
[1751554306566,6.5529,152.54,152.51,195.1]
[1751554306770,7.21859027,152.58,152.51,195.1]
[1751554306962,5.48066706,152.57,152.51,195.1]
[1751554307166,6.5525,152.55,152.53,6.5531]
[1751554307467,7.21859027,152.6,152.54,195.08]
[1751554307667,5.46525151,152.59,152.54,195.08]
[1751554308067,6.5523,152.56,152.54,195.08]
[1751554308868,6.5516,152.57,152.54,195.08]
[1751554309468,6.5519,152.56,152.54,201.6326]
[1751554309670,7.21859027,152.6,152.54,201.6326]
[1751554309873,5.4706083,152.59,152.54,201.6326]
[1751554310067,6.5517,152.57,152.54,201.6326]
[1751554310667,7.21859027,152.6,152.55,6.552]
[1751554310963,7.21859027,152.6,152.54,195.08]
[1751554311168,6.5513,152.58,152.55,6.5522]
[1751554312871,6.5513,152.58,152.56,6.5518]
[1751554313073,6.5513,152.58,152.57,195.02]
[1751554313470,6.5513,152.58,152.56,195.0]
[1751554314277,2.1591,152.63,152.56,195.0]
[1751554314574,7.64968551,152.63,152.56,195.0]
[1751554314771,7.21859027,152.62,152.56,195.0]
[1751554314971,5.49058551,152.61,152.56,195.0]
[1751554315273,7.21859027,152.6,152.56,195.0]
[1751554316476,7.21859027,152.62,152.56,201.5518]
[1751554316679,5.52402274,152.61,152.56,201.5518]
[1751554316978,6.5513,152.58,152.56,195.0]
[1751554317870,6.5513,152.58,152.56,201.5518]
[1751554321482,6.5513,152.58,152.56,195.0]
[1751554322669,6.5514,152.57,152.56,195.0]
[1751554322875,7.21859027,152.62,152.56,195.0]
[1751554323078,5.53675948,152.61,152.56,195.0]
[1751554323277,6.5514,152.58,152.56,195.0]
[1751554323477,7.21859027,152.62,152.56,195.0]
[1751554323670,7.21859027,152.6,152.56,195.0]
[1751554323874,6.5514,152.57,152.56,195.0]
[1751554324374,2.1591,152.63,152.53,47.08]
[1751554324573,7.21859027,152.58,152.54,194.84]
[1751554325280,6.5522,152.56,152.53,53.6329]
[1751554325482,6.5522,152.56,152.54,194.84]
[1751554325781,7.21859027,152.58,152.54,194.84]
[1751554327580,6.5532,152.53,152.51,46.94]
[1751554327780,7.21859027,152.54,152.47,566.34]
[1751554327985,46.94,152.61,152.48,194.82]
[1751554327986,4.81455268,152.5,152.48,194.82]
[1751554328186,6.5553,152.48,152.47,46.94]
[1751554328387,6.5553,152.48,152.47,241.76]
[1751554329082,6.555,152.49,152.47,241.76]
[1751554329487,4.5369,152.55,152.47,53.4957]
[1751554329691,4.81455268,152.51,152.48,194.84]
[1751554330786,6.5547,152.5,152.48,194.84]
[1751554331792,11.36865268,152.51,152.48,201.3951]
[1751554331993,6.5541,152.51,152.48,201.3951]
[1751554332192,46.94,152.56,152.48,194.84]
[1751554332389,6.5538,152.52,152.49,6.5546]
[1751554332586,4.81455268,152.54,152.49,6.5546]
[1751554333089,4.81455268,152.52,152.48,194.84]
[1751554333593,6.5549,152.49,152.48,194.84]
[1751554333794,4.81455268,152.52,152.48,194.84]
[1751554334192,4.81455268,152.53,152.48,201.3951]
[1751554334796,6.5543,152.51,152.48,201.3951]
[1751554334995,4.81455268,152.53,152.48,194.84]
[1751554335496,6.5548,152.5,152.47,53.4956]
[1751554335693,4.81455268,152.51,152.48,194.8]
[1751554335893,4.81455268,152.49,152.46,194.8]
[1751554336093,6.5557,152.47,152.46,194.8]
[1751554337100,6.5557,152.47,152.46,194.78]
[1751554339295,6.5557,152.47,152.44,53.5168]
[1751554339495,6.5563,152.46,152.45,194.78]
[1751554340185,6.5563,152.46,152.44,46.96]
[1751554340487,6.5563,152.46,152.45,194.76]
[1751554341286,6.5566,152.45,152.44,46.96]
[1751554341488,4.81455268,152.47,152.44,241.72]
[1751554341793,6.5566,152.45,152.44,241.72]
[1751554342189,4.81455268,152.47,152.44,46.96]
[1751554342494,6.5564,152.46,152.45,194.76]
[1751554343192,6.5566,152.45,152.44,46.96]
[1751554343394,6.5566,152.45,152.44,241.72]
[1751554343703,6.5566,152.45,152.44,46.96]
[1751554343896,6.5566,152.45,152.44,241.7]
[1751554344993,6.5566,152.45,152.44,241.72]
[1751554345193,6.5566,152.45,152.44,46.96]
[1751554345398,6.5566,152.45,152.44,241.7]
[1751554345595,6.5566,152.45,152.44,46.96]
[1751554345796,6.5566,152.45,152.44,241.7]
[1751554346495,11.37115268,152.45,152.44,46.96]
[1751554346696,11.37115268,152.45,152.44,241.68]
[1751554347197,11.37115268,152.45,152.44,46.96]
[1751554347401,11.37115268,152.45,152.44,241.68]
[1751554348399,11.37115268,152.45,152.44,46.96]
[1751554348599,11.37115268,152.45,152.44,241.68]
[1751554352001,11.37115268,152.45,152.44,46.96]
[1751554352203,6.5566,152.45,152.44,241.66]
[1751554352399,5.96121799,152.52,152.44,241.66]
[1751554352600,4.81455268,152.5,152.44,241.66]
[1751554353300,4.81455268,152.46,152.4,615.1958]
[1751554353499,4.81455268,152.44,152.4,615.1958]
[1751554353703,4.81455268,152.44,152.41,194.68]
[1751554354101,6.5578,152.43,152.41,194.68]
[1751554354300,4.81455268,152.42,152.28,13.1278]
[1751554354508,4.81455268,152.4,152.28,46.88]
[1751554354806,4.81455268,152.36,152.29,196.9379]
[1751554355208,11.37505268,152.36,152.29,196.9379]
[1751554355707,6.561,152.35,152.32,6.5619]
[1751554355906,4.81455268,152.36,152.33,46.88]
[1751554356102,4.81455268,152.36,152.34,194.66]
[1751554356299,4.81455268,152.36,152.34,201.2213]
[1751554356810,4.81455268,152.38,152.34,194.66]
[1751554357313,4.81455268,152.38,152.36,6.5604]
[1751554357606,4.81455268,152.38,152.37,194.7]
[1751554358407,11.37415268,152.38,152.37,194.7]
[1751554359511,6.5602,152.37,152.35,194.68]
[1751554360312,6.5602,152.37,152.35,201.2408]
[1751554360615,6.5602,152.37,152.35,194.68]
[1751554361814,11.37435268,152.38,152.35,194.68]
[1751554362012,4.81455268,152.38,152.35,194.68]
[1751554362409,6.5603,152.37,152.35,194.68]
[1751554363914,6.5605,152.36,152.35,194.68]
[1751554364915,4.81455268,152.36,152.33,46.88]
[1751554365313,4.81455268,152.36,152.34,194.68]
[1751554365518,6.5613,152.34,152.33,46.88]
[1751554365818,11.37585268,152.34,152.33,46.88]
[1751554366919,4.81455268,152.37,152.33,46.88]
[1751554367512,6.5607,152.36,152.33,46.88]
[1751554368114,6.5609,152.35,152.33,53.4416]
[1751554368620,4.81455268,152.37,152.33,53.4416]
[1751554369119,4.81455268,152.35,152.33,46.88]
[1751554370514,9.42365268,152.4,152.33,46.88]
[1751554370714,4.81455268,152.36,152.33,46.88]
[1751554371619,11.37585268,152.34,152.33,46.88]
[1751554373822,4.81455268,152.36,152.33,46.88]
[1751554374319,11.37545268,152.36,152.33,53.4415]
[1751554374622,6.5609,152.36,152.33,46.88]
[1751554375124,6.5609,152.36,152.33,53.4416]
[1751554375328,6.561,152.35,152.33,53.4416]
[1751554376019,6.5606,152.36,152.34,6.561]
[1751554376224,4.81455268,152.38,152.35,194.66]
[1751554376723,6.5605,152.36,152.35,194.66]
[1751554376926,4.81455268,152.38,152.35,194.66]
[1751554377223,6.5603,152.37,152.35,194.64]
[1751554377420,4.81455268,152.38,152.35,194.64]
[1751554377613,4.81455268,152.36,152.35,194.64]
[1751554377814,11.37505268,152.36,152.35,194.64]
[1751554378725,4.81455268,152.36,152.34,194.64]
[1751554379219,6.5616,152.34,152.33,194.64]
[1751554379420,11.37615268,152.34,152.33,194.64]
[1751554379721,11.37615268,152.34,152.32,46.82]
[1751554379926,11.37615268,152.34,152.33,194.64]
[1751554380421,6.5611,152.35,152.33,194.64]
[1751554382323,4.81455268,152.37,152.34,6.5613]
[1751554382527,4.81455268,152.37,152.33,194.64]
[1751554382928,6.5611,152.35,152.33,194.64]
[1751554383329,4.6091,152.4,152.33,194.64]
[1751554383526,4.81455268,152.37,152.33,194.64]
[1751554384728,4.81455268,152.38,152.33,194.64]
[1751554384932,4.81455268,152.39,152.33,194.64]
[1751554385124,6.5603,152.37,152.35,6.5608]
[1751554385322,6.5603,152.37,152.36,194.6]
[1751554385727,6.5598,152.38,152.36,194.6]
[1751554386025,4.81455268,152.39,152.36,194.6]
[1751554386929,6.5596,152.38,152.36,201.1604]
[1751554387130,4.81455268,152.39,152.36,194.6]
[1751554387330,11.37395268,152.39,152.36,194.6]
[1751554387634,4.81455268,152.39,152.36,201.1602]
[1751554388630,6.5598,152.38,152.36,201.1602]
[1751554389134,6.5598,152.38,152.36,194.6]
[1751554389434,11.37455268,152.37,152.36,194.6]
[1751554389824,4.81455268,152.41,152.36,194.6]
[1751554390432,4.81455268,152.41,152.38,6.5593]
[1751554390828,4.81455268,152.41,152.37,46.8]
[1751554391029,6.559,152.4,152.37,53.3598]
[1751554391229,4.81455268,152.41,152.37,53.3598]
[1751554391433,6.5593,152.39,152.37,53.3598]
[1751554392237,4.81455268,152.41,152.37,53.3598]
[1751554392937,6.5591,152.4,152.37,53.3598]
[1751554394134,6.5593,152.39,152.37,53.3598]
[1751554394737,5.96121799,152.47,152.37,46.8]
[1751554394933,4.81455268,152.48,152.38,4.81455268]
[1751554394934,4.81455268,152.44,152.38,4.81455268]
[1751554395141,6.5575,152.43,152.4,6.5585]
[1751554395440,4.81455268,152.44,152.41,194.52]
[1751554395634,11.37245268,152.42,152.41,194.52]
[1751554396736,6.5578,152.43,152.41,194.52]
[1751554396937,4.81455268,152.44,152.41,194.52]
[1751554397639,5.44541129,152.43,152.41,194.52]
[1751554398138,6.5579,152.42,152.41,194.52]
[1751554400739,5.96121799,152.46,152.41,194.52]
[1751554400938,4.81455268,152.44,152.41,194.52]
[1751554401836,11.37185268,152.44,152.42,6.5576]
[1751554402039,11.37185268,152.44,152.41,194.52]
[1751554402337,11.37185268,152.44,152.41,201.078]
[1751554402736,4.81455268,152.44,152.41,201.078]
[1751554402938,8.21961799,152.48,152.41,201.078]
[1751554403138,4.81455268,152.45,152.41,201.078]
[1751554403338,6.5571,152.44,152.42,6.5579]
[1751554403643,4.81455268,152.45,152.41,194.52]
[1751554403841,4.81455268,152.45,152.41,201.0782]
[1751554404041,4.81455268,152.45,152.41,194.52]
[1751554404932,6.5573,152.44,152.41,194.52]
[1751554405245,4.81455268,152.45,152.41,194.52]
[1751554405439,6.5571,152.44,152.41,201.078]
[1751554405744,6.5571,152.44,152.41,194.52]
[1751554406040,4.81455268,152.45,152.42,46.72]
[1751554406243,4.81455268,152.47,152.42,46.72]
[1751554406537,6.5567,152.45,152.43,6.5573]
[1751554406741,4.81455268,152.47,152.43,6.5573]
[1751554406942,4.81455268,152.45,152.42,46.72]
[1751554407243,6.5573,152.44,152.42,46.72]
[1751554407944,4.81455268,152.45,152.42,46.72]
[1751554407945,6.5575,152.43,152.42,46.72]
[1751554410041,6.5572,152.44,152.42,46.72]
[1751554410343,6.5572,152.44,152.42,53.2779]
[1751554410544,6.5572,152.44,152.42,46.72]
[1751554411145,6.5572,152.44,152.42,53.2776]
[1751554411648,6.5572,152.44,152.42,46.72]
[1751554412149,6.5575,152.43,152.42,46.72]
[1751554412737,10.26366962,152.43,152.36,2.3404]
[1751554412947,4.81455268,152.4,152.37,241.04]
[1751554413444,6.5594,152.39,152.38,194.32]
[1751554414849,11.37345268,152.4,152.38,194.32]
[1751554415149,11.37345268,152.4,152.37,53.2798]
[1751554415351,11.37345268,152.4,152.38,194.32]
[1751554415551,11.37345268,152.4,152.37,53.2798]
[1751554415848,11.37345268,152.4,152.38,194.3]
[1751554416744,5.96121799,152.45,152.38,6.5593]
[1751554416951,4.81455268,152.41,152.39,194.32]
[1751554417150,4.81455268,152.43,152.39,194.32]
[1751554417343,6.558,152.42,152.39,200.8789]
[1751554417742,4.81455268,152.43,152.39,200.8789]
[1751554417944,6.558,152.42,152.39,200.8789]
[1751554418340,6.558,152.42,152.4,6.5585]
[1751554418955,4.81455268,152.45,152.39,194.32]
[1751554419154,4.81455268,152.46,152.39,199.13455268]
[1751554419352,6.5571,152.44,152.39,199.13455268]
[1751554420355,6.5577,152.43,152.39,194.32]
[1751554420755,4.81455268,152.44,152.39,194.32]
[1751554420954,6.558,152.42,152.4,6.5585]
[1751554421149,4.81455268,152.44,152.39,194.32]
[1751554421357,4.81455268,152.4,152.39,194.28]
[1751554421856,11.37335268,152.4,152.39,194.28]
[1751554422047,4.81455268,152.4,152.38,46.72]
[1751554423158,6.5592,152.39,152.38,46.72]
[1751554423358,4.81455268,152.4,152.34,46.72]
[1751554423560,4.81455268,152.36,152.34,240.98]
[1751554423951,6.5613,152.35,152.34,240.98]
[1751554426254,6.5613,152.35,152.34,241.0]
[1751554427559,6.5613,152.35,152.34,46.72]
[1751554427759,6.5613,152.35,152.34,240.98]
[1751554431760,6.5613,152.35,152.34,46.72]
[1751554432068,6.5613,152.35,152.34,240.96]
[1751554433162,6.5613,152.35,152.34,46.72]
[1751554434468,6.5613,152.34,152.33,194.24]
[1751554434668,11.37585268,152.34,152.33,194.24]
[1751554435069,6.5625,152.32,152.3,53.223]
[1751554435371,6.5625,152.32,152.31,194.24]
[1751554435765,6.5616,152.34,152.31,200.8024]
[1751554435964,4.81455268,152.38,152.31,199.05455268]
[1751554436366,6.5608,152.36,152.33,6.5614]
[1751554436561,4.81455268,152.39,152.34,194.24]
[1751554437572,4.81455268,152.39,152.35,46.66]
[1751554437768,2.2401,152.42,152.35,46.66]
[1751554437971,6.5594,152.39,152.36,6.5601]
[1751554438272,4.81455268,152.41,152.37,194.22]
[1751554438464,4.81455268,152.42,152.37,194.22]
[1751554438665,4.81455268,152.44,152.37,199.03455268]
[1751554438866,6.5579,152.42,152.39,6.5589]
[1751554439165,6.5579,152.42,152.4,240.88]
[1751554442484,6.5583,152.41,152.4,240.88]
[1751554443079,6.5581,152.42,152.4,240.88]
[1751554443379,2.3341,152.46,152.4,247.4385]
[1751554443677,6.5573,152.44,152.4,240.88]
[1751554444370,4.81455268,152.45,152.4,240.88]
[1751554444874,6.5583,152.41,152.4,240.88]
[1751554447878,11.37285268,152.41,152.4,240.88]
[1751554448374,6.5583,152.41,152.4,240.88]
[1751554449178,6.558,152.42,152.4,240.88]
[1751554449380,4.81455268,152.44,152.4,240.88]
[1751554449877,6.5583,152.41,152.4,240.88]
[1751554450181,4.81455268,152.42,152.4,194.1]
[1751554450382,6.5583,152.41,152.4,194.1]
[1751554452980,4.81455268,152.43,152.36,4.81455268]
[1751554453179,4.81455268,152.43,152.39,6.559]
[1751554453574,6.5577,152.43,152.4,240.72]
[1751554453775,6.5577,152.43,152.4,247.2786]
[1751554455683,6.5577,152.43,152.41,6.5583]
[1751554455883,6.5577,152.43,152.42,194.06]
[1751554458785,6.5572,152.44,152.42,194.06]
[1751554459080,4.81455268,152.47,152.42,194.06]
[1751554459281,5.45525905,152.46,152.42,194.06]
[1751554459876,5.45525905,152.46,152.42,198.87455268]
[1751554460076,10.80267221,152.5,152.42,198.87455268]
[1751554460277,6.5556,152.48,152.42,198.87455268]
[1751554460785,6.5551,152.49,152.46,6.5561]
[1751554460984,4.81455268,152.5,152.47,194.0]
[1751554461186,5.45543351,152.49,152.47,194.0]
[1751554461387,6.5553,152.48,152.47,194.0]
[1751554463087,11.36985268,152.48,152.47,194.0]
[1751554463297,6.5557,152.47,152.46,46.64]
[1751554463490,12.02347274,152.47,152.46,46.64]
[1751554464294,11.37025268,152.48,152.46,46.64]
[1751554464991,8.14631953,152.52,152.46,46.64]
[1751554465292,4.81455268,152.49,152.46,46.64]
[1751554465491,6.5557,152.48,152.46,46.64]
[1751554466083,11.36965268,152.49,152.46,53.1959]
[1751554466288,4.81455268,152.51,152.46,46.64]
[1751554466592,6.5548,152.5,152.47,6.5555]
[1751554466792,4.81455268,152.51,152.48,193.94]
[1751554467184,19.66,152.43,152.16,16.27021087]
[1751554467390,4.81848493,152.23,152.16,4.3585]
[1751554467592,5.97743093,152.31,152.16,4.3585]
[1751554467796,4.81848493,152.22,152.16,202.6785]
[1751554468292,4.81848493,152.2,152.16,202.6785]
[1751554468492,4.81848493,152.2,152.15,48.02]
[1751554468686,4.81848493,152.21,152.15,48.02]
[1751554469090,4.81848493,152.21,152.16,198.28]
[1751554469287,11.38578493,152.21,152.17,246.3]
[1751554469486,4.81848493,152.21,152.17,246.3]
[1751554469996,6.5677,152.2,152.17,246.3]
[1751554470697,6.5671,152.21,152.17,246.3]
[1751554470897,7.25107685,152.22,152.17,246.3]
[1751554472192,7.25078124,152.22,152.17,246.3]
[1751554472794,7.25078124,152.2,152.17,48.02]
[1751554473396,7.25078124,152.28,152.17,48.02]
[1751554473600,7.25078124,152.21,152.17,48.02]
[1751554474602,6.5675,152.2,152.17,48.02]
[1751554474801,55.31078124,152.28,152.17,48.02]
[1751554474998,7.25078124,152.22,152.17,48.02]
[1751554475202,6.5673,152.21,152.17,48.02]
[1751554476897,7.25078124,152.2,152.17,48.02]
[1751554477797,13.81818124,152.2,152.17,48.02]
[1751554478400,7.25078124,152.2,152.17,48.02]
[1751554479597,6.5678,152.19,152.17,48.02]
[1751554480401,13.81828124,152.2,152.17,48.02]
[1751554481101,7.25078124,152.2,152.17,48.08]
[1751554481400,7.25078124,152.22,152.17,48.08]
[1751554481704,7.25078124,152.2,152.17,48.08]
[1751554482496,6.5682,152.18,152.17,48.08]
[1751554482697,13.81898124,152.18,152.17,48.08]
[1751554483296,7.25078124,152.18,152.1,2.1618]
[1751554483702,7.25078124,152.16,152.11,246.12]